Workbook

Sheet Welcome
A1: mailto:rex1315chen@gmail.com?subject=Excel-實務交流
H8: 1 | I8: =INDEX(SheetNames,H8) -> Welcome
C9: 請輸入學員姓名： | XFC9: 滿意
C10: 商智院 | D10: 教授 | E10: 陳文魁 | H10: 2 | I10: =INDEX(SheetNames,H10) -> 內容 | XFC10: =SUMPRODUCT(C35:F35,G36:J36)/6 -> 70
H12: 3 | I12: =INDEX(SheetNames,H12) -> 工作表函數
B14: 課後滿意度調查： | D14: 1-沒意見; 2-同意; 3-很同意; 4-超同意 | H14: 4 | I14: =INDEX(SheetNames,H14) -> 格式化條件
H16: 5 | I16: =INDEX(SheetNames,H16) -> 日期與時間
D17: 1
H18: 6 | I18: =INDEX(SheetNames,H18) -> 清單設定
D20: 1 | H20: 7 | I20: =INDEX(SheetNames,H20) -> 資料驗證
H22: 8 | I22: =INDEX(SheetNames,H22) -> 數據統計
D23: 1
H24: 9 | I24: =INDEX(SheetNames,H24) -> 資料庫檢索
D26: 1 | H26: 10 | I26: =INDEX(SheetNames,H26) -> 資料庫篩選
H28: 11 | I28: =INDEX(SheetNames,H28) -> 樞紐分析表
D29: 1
H30: 12 | I30: =INDEX(SheetNames,H30) -> 電機課表
D32: 1 | H32: 13 | I32: =INDEX(SheetNames,H32) -> 文字式函數
C35: 70 | D35: 80 | E35: 90 | F35: 100 | G35: 1 | H35: 2 | I35: 3 | J35: 4
G36: =COUNTIF($C$16:$D$32,G$35) -> 6 | H36: =COUNTIF($C$16:$D$32,H$35) -> 0 | I36: 0 | J36: 0

Sheet 內容
A1: 講師：陳文魁 教授
E3: Welcome!B10
B5: 工作表函數 | D5: 格式化條件
B6: 展示如何完成一般工作表作業的公式範例。 | D6: 展示如何自動突顯大範圍的例外儲格位。
B7: 日期與時間 | D7: 清單的設定
B8: 展示如何使用日期與時間之內訂格式或函數，來滿足形形色色輸入和輸出的需要。 | D8: 展示如何自訂清單讓您得以建立自訂清單，以及循環輸入清單項目。
B9: 資料的驗證 | D9: 數據的統計
B10: 展示如何設定限制儲格內數值之輸入。 | D10: 展示如何計算儲格範圍的各式統計量。
B11: 資料庫檢索 | D11: 資料庫篩選
B12: 展示如何查詢資料庫的關連數據。 | D12: 展示如何檢索資料庫的關連數據。
B13: 樞紐分析表 | D13: 文字式函數
B14: 展示如何快速合併和比較大量資料的互動式表格。 | D14: 展示如何使用文字函數以及自訂函數程式碼。

Sheet 工作表函數
A1: =Welcome!$C$10&"-"&Welcome!$D$10&"-"&Welcome!$E$10 -> 商智院-教授-陳文魁 | L1: Welcome!B10
A3: 此工作表包含範例公式，您可使用它們來完成日常的試算表工作。
A4: 藍色網底的儲格包含公式。若要檢視範例公式，請將滑鼠移向該儲格
A5: 便可取閱相關的註解。您也可以按 CTRL+` 切換儲格中公式與值的顯示。
A6: 有關工作表函數的資訊，請選取含有公式的儲格，然後在一般工具列上
A7: 選取 編輯公式 (=) 按鈕。
A9: 抑制錯誤值的顯示
A10: 工作表公式有時會傳回錯誤值 (如 #DIV/0!, #N/A, #VALUE!,#REF!, 及 #NUM!等)
A11: 是十分平常的事情。此些錯誤值的產生係由於事先未能預期的數值所導致。
A12: 除數公式就是其中一個最佳範例。如果來源資料儲格包含零值，
A13: 那麼就會傳回 #DIV/0! 錯誤值。
B15: 來源 A | C15: 來源 B | D15: 原始公式 | E15: 新公式 | G15: 練習
B16: 25 | C16: 0 | D16: =B16/C16 ->  | E16: =IF(C16=0," ",B16/C16) -> 
A18: 使用函數來抑制錯誤值顯示的一般方法可表達如下：
A19: =IF(ISERROR(<formula>),"",<formula>)
A20: 其中 <formula> 係您所要抑制顯示錯誤值的公式。
A21: 如果 <formula> 傳回錯誤值， 則該表示式傳回 "" (null 字元)，
A22: 否則傳回 <formula>的結果值。
A24: 其他抑制錯誤值顯示的方法係使用 Excel 「設定格式化條件」的功能。
A25: 「設定格式化條件」允許您根據儲格的內容顯示各種不同的格式。
A26: 就錯誤值而言，您需要遵循下列步驟：
B28: 1. 選擇所要格式化的儲格 (在本範例中為 $E$40)
B29: 2. 在功能表中選擇「格式」/「設定格式化條件」
B30: 3. 在第一個下拉方塊中，選擇 "公式為"
B31: 4. 在鄰近的編輯方塊中輸入： =ISERROR($E$40)
B32: 5. 按下格式鈕，並選擇一種格式，
B33: 在本範例中，使用了藍色背景及深藍色字型作為格式。
B34: 6. 按下確定鈕。
A36: 經由上述步驟所產生的結果：
A37: 若有錯誤值則該儲格的格式為藍色背景及深藍色字型。
B39: 來源 A | C39: 來源 B | D39: 原始公式 | E39: 新公式 | G39: 練習
B40: 25 | C40: 0 | D40: =B40/C40 ->  | E40: =B40/C40 -> 
A43: 索引，比對以及查詢數值 | K43: 2005-01-17 | L43: 2005-01-18 | M43: 2005-01-19 | N43: 2005-01-20 | O43: 2005-01-21 | P43: 總和
A44: 清單管理中一項最平常的作業乃是尋找工作表中矩形儲格範圍的欄與列交織之格位。 | J44: 08:45:00 | K44: 2000 | L44: 8340 | M44: 8027 | N44: 8892 | O44: 640 | P44: =SUM(K44:O44) -> 27899
A45: 查表精靈可幫助我們撰寫此種公式並完成任務。 | J45: 09:45:00 | K45: 5000 | L45: 640 | M45: 8352 | N45: 6269 | O45: 3409 | P45: =SUM(K45:O45) -> 23670
J46: 10:45:00 | K46: 2086 | L46: 4806 | M46: 9348 | N46: 4779 | O46: 7722 | P46: =SUM(K46:O46) -> 28741
A47: 要使用此種特色，請選擇所要尋找的儲格資料範圍， | J47: 11:45:00 | K47: 4000 | L47: 7870 | M47: 4637 | N47: 253 | O47: 8905 | P47: =SUM(K47:O47) -> 25665
A48: 接著選擇 「工具」/「 精靈」/「 查表」， 並遵循精靈方塊內的各項步驟。
A50: 如果該功能表項目未能顯現，而欲查詢如何使用及安裝查表精靈，
A51: 則請使用小幫手並搜尋 "查表精靈"文字。
A53: 條件式的加總公式
A54: 另一項 Excel 常作的作業乃是計算符合您所指定條件的數值加總。
A55: 條件加總精靈可幫助我們撰寫此種公式並完成任務。
A57: 要使用此種特色，請選擇在清單中所要彙總的儲格，
A58: 接著選擇「工具」/「精靈」/ 「條件式加總」， 並遵循精靈方塊內的各項步驟。
A60: 如果該功能表項目未能顯現，而欲查詢如何使用及安裝條件式加總精靈，
A61: 則請使用小幫手並搜尋 "條件式加總精靈"文字。

Sheet 格式化條件
A1: =Welcome!$C$10&"-"&Welcome!$D$10&"-"&Welcome!$E$10 -> 商智院-教授-陳文魁 | L1: Welcome!B10
A3: 格式化條件允許您根據儲格現存的數值來改變該儲格位的格式。此一功能讓使用者得以自動突顯出例外儲格位，從而快速地查核較大資料範圍工作表。格式化條件最多允許您對儲格位應用三個格式化條件。 格式化條件讓您得以改變儲格的字型樣式，框線及圖樣。
A8: 格式化範例 #1
J9: 練習
A10: 儲格 H10:H14 包含三個格式化條件。這些條件可以根據輸入儲格位內數值來改變該儲格位的格式。 要查閱套用到這些儲格的格式化條件，可以選定 H10 儲格，並在「格式」功能表中選擇「設定格式化條件」。 | H10: 4 | J10: 45
H11: 7 | J11: 77
H12: 文字 | J12: 陳文魁
H13: 1 | J13: 21
H14: 15 | J14: 95
A17: 格式化範例 #2 - 隱藏錯誤值
M18: 練習
A19: 本範例說明如何使用格式化條件來隱藏從公式所傳回來的錯誤值。在本範例中，當尚未使用格式化條件時，儲格 H21 及 H23 將顯示 #DIV/0! 錯誤值。然而，以格式化條件將錯誤值的字型顏色設定與儲格的背景相同的顏+A3色後，即可隱藏從公式所傳回來的錯誤值。 要查閱套用到此些儲格位的格式化條件，可以選定 H19 儲格，並在「格式」功能表中選擇「設定格式化條件」。 | H19: =J19/K19 -> 2.5 | J19: 10 | K19: 4
H20: =J20/K20 -> 4 | J20: 20 | K20: 5
H21: =J21/K21 ->  | J21: 30
H22: =J22/K22 -> 5 | J22: 40 | K22: 8
H23: =J23/K23 ->  | J23: 50
A29: 格式化範例 #3 -自動格式設定 | P29: 練習
A31: 本範例說明如何使用自動格式設定。在本範例中，當尚未使用自動格式設定時，儲格 H31: N35儲格範圍呈現前設格式。 要查閱套用到此些儲格位的自動格式化樣式，可以選定 H31: N35儲格範圍，並在「格式」功能表中選擇「自動格式化設定」。 | I31: 2005-01-17 | J31: 2005-01-18 | K31: 2005-01-19 | L31: 2005-01-20 | M31: 2005-01-21 | N31: 總和 | Q31: 38369 | R31: 38370 | S31: 38371 | T31: 38372 | U31: 38373 | V31: 總和
H32: 08:45:00 | I32: 2000 | J32: 8340 | K32: 8027 | L32: 8892 | M32: 640 | N32: =SUM(I32:M32) -> 27899 | P32: 0.3645833333 | Q32: 2000 | R32: 8340 | S32: 8027 | T32: 8892 | U32: 640 | V32: 27899
H33: 09:45:00 | I33: 5000 | J33: 640 | K33: 8352 | L33: 6269 | M33: 3409 | N33: =SUM(I33:M33) -> 23670 | P33: 0.40625 | Q33: 5000 | R33: 640 | S33: 8352 | T33: 6269 | U33: 3409 | V33: 23670
H34: 10:45:00 | I34: 2086 | J34: 4806 | K34: 9348 | L34: 4779 | M34: 7722 | N34: =SUM(I34:M34) -> 28741 | P34: 0.4479166667 | Q34: 2086 | R34: 4806 | S34: 9348 | T34: 4779 | U34: 7722 | V34: 28741
H35: 11:45:00 | I35: 4000 | J35: 7870 | K35: 4637 | L35: 253 | M35: 8905 | N35: =SUM(I35:M35) -> 25665 | P35: 0.4895833333 | Q35: 4000 | R35: 7870 | S35: 4637 | T35: 253 | U35: 8905 | V35: 25665

Sheet 日期與時間
A1: =Welcome!$C$10&"-"&Welcome!$D$10&"-"&Welcome!$E$10 -> 商智院-教授-陳文魁 | J1: Welcome!B10
A3: 日期與時間都各自擁有各式之內訂格式，來滿足形形色色慣例的需要。日期與時間也都各自擁有各式之內訂函數，來滿足形形色色輸入和輸出的需要。 微軟用1900/1/1星期日作為電腦曆的首日，所以1900/1/1之後的任何日期都是正整數。一天、24小時、1440分或86400秒正好等於一日，其數值正好等於1.0，所以同天內的時刻都是介於0與1的小數。
L7: 練習
A8: 日期與時間範例 #1 - 日期 | H8: 內訂格式 | I8: 自訂格式 | L8: 內訂格式 | M8: 自訂格式
H9: 2018-02-23 | I9: =TODAY() -> 44160 | J9: 年？ | L9: 38368 | M9: 38371
A10: 儲格 H9:I14 設定不同的日期格式。這些格式可以根據設定的格式來呈現日期。 要查閱套用到這些儲格的日期格式，可以選定上述任一儲格，並在「格式」功能表中選擇「儲格格式」和「日期」，必要時再選擇「自訂」。 | H10: =H9 -> 2018-02-23 | I10: =I9 -> 44160 | J10: 季？ | L10: 38368
H11: =H10 -> 2018-02-23 | I11: =I10 -> 2020-11-25 | J11: 月？ | L11: 38368 | M11: 38371
H12: =H11 -> 2018-02-23 | I12: 4 | J12: 週？ | L12: 38368 | M12: 4
H13: =H12 -> 2018-02-23 | I13: =I12 -> 1900-01-04 | J13: 日？ | L13: 38368 | M13: 4
H14: =H13 -> 2018-02-23 | I14: =I9 -> 44160 | J14: ？ | L14: 38368 | M14: 38371
L17: 練習
A18: 日期與時間範例 #2 - 日期函數 | H18: 內訂格式 | I18: 日期函數 | L18: 內訂格式 | M18: 日期函數
H19: 2018-02-23 | I19: =DATE(2018,2,23) -> 2018-02-23 | J19: DATE | L19: 38368 | M19: 38376
A20: 儲格 I19中的DATE是日期輸入函數。儲格 I19:I24 給予不同的日期函數YEAR、MONTH、WEEKDAY、DAY、weeknum及EoMonth，這些函數可以根據輸入日期來呈現日期資訊。 要查閱應用到的日期函數，可以選定上述任一儲格。 | H20: =H19 -> 2018-02-23 | I20: =YEAR(I$19) -> 2018 | J20: YEAR | L20: 38368 | M20: 2005
H21: =H20 -> 2018-02-23 | I21: =MONTH(I$19) -> 2 | J21: MONTH | L21: 38368 | M21: 1
H22: =H21 -> 2018-02-23 | I22: =WEEKDAY(I$19,2) -> 5 | J22: WEEKDAY | L22: 38440 | M22: 2
H23: =H21 -> 2018-02-23 | I23: =DAY(I$19) -> 23 | J23: DAY | L23: 38368 | M23: 24
H24: =H23 -> 2018-02-23 | J24: weeknum | L24: 38368 | M24: 5
H25: =H24 -> 2018-02-23 | J25: EoMonth | L25: 38368 | M25: 38411
A26: 日期與時間範例 #3 - 時間
L27: 練習
A28: 儲格 H28:I34 設定不同的時間格式。這些格式可以根據設定的格式來呈現時間。 要查閱套用到這些儲格的時間格式，可以選定上述任一儲格，並在「格式」功能表中選擇「儲格格式」和「時間」，必要時再選擇「自訂」。 | H28: 內訂格式 | I28: 自訂格式 | L28: 內訂格式 | M28: 自訂格式
H29: 13:23:15 | I29: =NOW() -> 44160.31145 | J29: 上午？ | L29: 0.5578125 | M29: 38371.21149
H30: =H29 -> 13:23:15 | I30: 44160.31145 | J30: 時？ | L30: 0.5578125 | M30: 38371.21149
H31: 13:23:15 | I31: 44160.31145 | J31: 分？ | L31: 0.5578125 | M31: 38371.21149
H32: 13:23:15 | I32: 44160.31145 | J32: 秒？ | L32: 0.5578125 | M32: 38371.21149
H33: 13:23:15 | I33: 44160.31145 | J33: 時辰？ | L33: 0.5578125 | M33: 38371.21149
H34: =H33 -> 13:23:15 | I34: =I29 -> 44160.31145 | J34: 數值？ | L34: 0.5578125 | M34: 38371.21149
A36: 日期與時間範例 #4 - 時間函數 | L36: 練習
A37: 儲格H38中的TIME是時間輸入函數。儲格 I37:I39 給予不同的時間函數HOUR、MINUTE、SECOND、及TIMEVALUE，這些函數可以根據輸入時間來呈現時間資訊。 要查閱應用到的日期函數，可以選定上述任一儲格。 | H37: 內訂格式 | I37: 時間函數 | L37: 內訂格式 | M37: 時間函數
H38: =TIME(5,18,24) -> 05:18:24 | I38: =NOW() -> 44160.31145 | J38: TIME | L38: 0.5578125 | M38: 38371.34443
H39: =MOD(INT(H38*24),24) -> 5 | I39: =HOUR(I38) -> 7 | J39: HOUR | L39: 0.5578125 | M39: 8
H40: =MOD(INT(H38*24*60),60) -> 18 | I40: =MINUTE(I38) -> 28 | J40: MINUTE | L40: 0.5578125 | M40: 15
H41: =MOD(INT(H38*24*60*60),60) -> 24 | I41: =SECOND(I38) -> 29 | J41: SECOND | L41: 0.5578125 | M41: 59
I42: =TIMEVALUE("2:29 AM") -> 0.1034722222 | L42: 0.5578125
L43: 0.5578125

Sheet 清單設定
A1: =Welcome!$C$10&"-"&Welcome!$D$10&"-"&Welcome!$E$10 -> 商智院-教授-陳文魁 | K1: Welcome!B10
A3: Excel提供清單設定的功能，以便利清單項目的輸入。 自訂清單讓您得以匯入自訂的清單項目，讓您得以循環輸入清單項目。
A8: 清單的設定範例 #1 - 使用清單
H9: 地支清單 | I9: 天干清單 | J9: 星期 | K9: 日別 | L9: 季別 | M9: 月別
A10: 儲格 H10:M11 包含清單項目。利用這些儲格可以循序輸入清單內其他項目。 要輸入該清單項目的其他項目，可以選定儲格 H10:M10 範圍的右下角，向下拖曳可以填滿清單的其他項目。 | H10: 子 | I10: 甲 | J10: 星期日 | K10: 週日 | L10: 第一季 | M10: 一月
H11: 丑 | I11: 乙 | M11: 二月
A17: 清單的設定範例 #2 - 匯入清單
A19: Excel提供匯入清單的功能，得以將儲格 I19:Z19的項目設定為乙份清單。 要建立24節氣自訂清單，可以於「工具」功能表中選擇「選項」、「自訂清單」、「匯入」。 | H19: 匯入清單 | J19: 使用清單 | K19: 雨水
H20: 立春 | J20: 立春
H21: 雨水
H22: 驚蟄
H23: 春分
H24: 清明
H25: 穀雨
H26: 立夏
H27: 小滿
H28: 芒種
H29: 夏至
H30: 小暑
H31: 大暑
H32: 立秋
H33: 處暑
H34: 白露
H35: 秋分
H36: 寒露
H37: 霜降
H38: 立冬
H39: 小雪
H40: 大雪
H41: 冬至
H42: 小寒
H43: 大寒

Sheet 資料驗證
A1: =Welcome!$C$10&"-"&Welcome!$D$10&"-"&Welcome!$E$10 -> 商智院-教授-陳文魁 | J1: Welcome!B10
A3: 資料驗證讓您得以限制輸入儲格位的數值。下列範例呈現若干使用資料驗證的應用 。
A7: 資料驗證範例 #1 - 僅能輸入數值資料的限制
J8: 練習
A9: 儲格 H9:H13 業已設定了資料驗證，從而在此些儲格位內僅能輸入數值資料。本範例在錯誤警告訊息中使用了錯誤樣式，藉此避免您在選定的儲格位中輸入了不正確的資料。 要查閱本範例的資料驗證設定，可以選定 H9 儲格，並在功能表中選擇「資料」/「驗證」。
A17: 資料驗證範例 #2 - 限制輸入文字的長度
J18: 練習
A19: 儲格 H19:H23 業已設定了資料驗證，從而在此些儲格位內僅能輸入最多七個字。本範例在錯誤警告訊息中使用了警告樣式，藉此讓您得以選擇取消資料輸入或接受已輸入的錯誤資料。 要查閱本範例的資料驗證設定，可以選定 H19 儲格，並在功能表中選擇「資料」/「驗證」。
A28: 資料驗證範例 #3 - 限制輸入資料的數值範圍
J29: 練習
A30: 儲格 H30:H34 業已設定了資料驗證，從而在此些儲格位內僅能輸入介於1到10的數值。本範例在錯誤警告訊息中使用了一般訊息樣式，藉此告知您資料輸入之錯誤訊息。然而，您亦可接受已輸入的錯誤資料。 要查閱本範例的資料驗證設定，可以選定 H30 儲格，並在功能表中選擇「資料」/「驗證」。
A39: 資料驗證範例 #4 - 限制儲格位內所輸入的為清單資料
J40: 練習
A41: 儲格 H41:H45 業已設定了資料驗證，從而在此些儲格位內僅能輸入M41:M49範圍內的系列資料。當您選定 H41:H45 範圍內的儲格資料時，儲格旁邊立即顯現下拉清單箭號。按下該下拉清單箭號時，M41:M49範圍內的清單資料立即顯現。本範例在錯誤警告訊息中使用了錯誤樣式，藉此避免您在選定的儲格位中輸入了不正確的資料。 要查閱本範例的資料驗證設定，可以選定 H41 儲格，並在功能表中選擇「資料」/「驗證」。 | H41: 鄭雅菁 | M41: 謝治勳
M42: 高雅琴
M43: 陳弘祐
M44: 彭琪祿
M45: 鄭雅菁
M46: 施仁貴
M47: 劉韻甄
M48: 黃國鳴
M49: 黃桂松

Sheet 數據統計
A1: =Welcome!$C$10&"-"&Welcome!$D$10&"-"&Welcome!$E$10 -> 商智院-教授-陳文魁 | J1: Welcome!B10
A3: 資料統計讓您得以統計儲格範圍的各式統計量。下列範例呈現若干統計函數和公式的應用 。
A7: 累計公式範例 #1 - 累加及百分比
M8: 練習
A9: 儲格 I10:I14 業已輸入了數值資料。本範例使用SUM函數，來計算累計和累計百分比例。利用相對格位、絕對列和絕對範圍，可以直接複製公式因而提高效率。 查閱本範例前三人的成績小計，可以選定儲格J12，公式是SUM($I$10:I12) 。查閱本範例累計至第三人的百分比例，可以選定儲格K12，公式是SUM($I$10:I12) / SUM($I$10:$I$14) 。 | H9: 姓名 | I9: 成績 | J9: 累計 | K9: 累計% | M9: 累計 | N9: 累計%
H10: 謝治勳 | I10: 73 | J10: =SUM($I$10:I10) -> 73 | K10: =SUM($I$10:I10)/SUM($I$10:$I$14) -> 0.1721698113
H11: 高雅琴 | I11: 75 | J11: =SUM($I$10:I11) -> 148 | K11: =SUM($I$10:I11)/SUM($I$10:$I$14) -> 0.3490566038
H12: 陳弘祐 | I12: 86 | J12: =SUM($I$10:I12) -> 234 | K12: =SUM($I$10:I12)/SUM($I$10:$I$14) -> 0.5518867925
H13: 彭琪祿 | I13: 93
H14: 鄭雅菁 | I14: 97
A20: 統計函數範例 #2 - 計數、最大、最小及平均
S21: 練習
A22: 儲格 I23:M27 業已儲放某班成績，本範例使用工作表函數進行計數、最大、最小及平均等統計。下述是本範例所用的工作表函數：COUNT, MAX, MIN, AVERAGE。 要查閱本範例的統計功能，可以選定 N23:Q23 儲格範圍，並從資料編輯列檢視公式。 | H22: 科目 | I22: 國文 | J22: 英文 | K22: 微積分 | L22: 工廠實習 | M22: 投資學 | N22: 數目 | O22: 最大 | P22: 最小 | Q22: 平均 | S22: 數目 | T22: 最大 | U22: 最小 | V22: 平均
H23: 謝治勳 | J23: 75 | K23: 86 | L23: 93 | M23: 97 | N23: =COUNT($I23:$M23) -> 4 | O23: =MAX($I23:$M23) -> 97 | P23: =MIN($I23:$M23) -> 75 | Q23: =AVERAGE($I23:$M23) -> 87.75
H24: 高雅琴 | I24: 76 | K24: 76 | L24: 75 | M24: 90
H25: 陳弘祐 | I25: 92 | J25: 94 | K25: 92 | M25: 85
H26: 彭琪祿 | I26: 89 | L26: 99 | M26: 99
H27: 鄭雅菁 | I27: 81 | J27: 80 | K27: 81 | L27: 75 | M27: 90
A31: 統計函數範例 #3 - 加權平均及名次 | S31: 練習
H32: 學分數 | I32: 2 | J32: 3 | K32: 3 | L32: 1 | M32: 3 | N32: 總學分數 | O32: =SUM(I32:M32) -> 12 | R32: 姓名 | S32: 學期成績 | T32: 名次
A33: 使用函數SUMPRODUCT計算學期成績，並且使用函數RANK查定成績名次。 要查閱本範例的學期成績的加權功能，可以選定 N35儲格；查閱成績名次，可以選定O35儲格。 | H33: 科目 | I33: 國文 | J33: 英文 | K33: 微積分 | L33: 工廠實習 | M33: 投資學 | N33: 學期成績 | O33: 名次 | R33: 高雅琴
H34: 謝治勳 | I34: 73 | J34: 75 | K34: 86 | L34: 93 | M34: 97 | N34: =SUMPRODUCT($I$32:$M$32,I34:M34)/總學分數 -> 84.41666667 | O34: =RANK(N34,$N$34:$N$37) -> 1 | R34: 陳弘祐
H35: 高雅琴 | I35: 76 | J35: 86 | K35: 76 | L35: 75 | M35: 90 | N35: =SUMPRODUCT($I$32:$M$32,I35:M35)/總學分數 -> 81.91666667 | O35: =RANK(N35,$N$34:$N$37) -> 2
H36: 陳弘祐 | I36: 92 | J36: 94 | K36: 92 | L36: 86 | M36: 85
H37: 彭琪祿 | I37: 89 | J37: 91 | K37: 87 | L37: 99 | M37: 99
A40: 統計函數範例 #4 - 成績分布
H41: 姓名 | I41: 成績 | Q41: 練習
A42: 儲格 I42:I61 業已輸入了成績資料。本範例使用COUNTIF函數來彙整某組成績分布，並且使用FREQUENCY函數，來一次完成所有各組成績分布的彙整。 查閱本範例61~70的成績人數，可以選定儲格M46；查閱FREQUENCY氏陣列函數，可以選定儲格N43:N49，而使用時必須同時按住Ctl及Shift兩鍵才可敲擊Enter鍵。 | H42: 謝治勳 | I42: 40 | K42: 成績分布 | M42: 人數 | N42: 人數 | Q42: 成績分布 | S42: 人數 | T42: 人數
H43: 高雅琴 | I43: 72 | K43: 0 | L43: 40 | M43: =COUNTIF($I$42:$I$61,"<="&L43) -> 4 | N43: =FREQUENCY(I42:I61,L43:L48) -> 4 | Q43: 35 | R43: 44
H44: 陳弘祐 | I44: 65 | K44: 41 | L44: 50 | M44: =COUNTIF($I$42:$I$61,"<="&L44) - COUNTIF($I$42:$I$61,"<="&L43) -> 4 | N44: 4 | Q44: 45 | R44: 54
H45: 彭琪祿 | I45: 44 | K45: 51 | L45: 60 | M45: =COUNTIF($I$42:$I$61,"<="&L45)-COUNTIF($I$42:$I$61,"<="&L44) -> 2 | N45: 2 | Q45: 55 | R45: 64
H46: 鄭雅菁 | I46: 49 | K46: 61 | L46: 70 | M46: =COUNTIF($I$42:$I$61,"<="&L46)-COUNTIF($I$42:$I$61,"<="&L45) -> 2 | N46: 2 | Q46: 65 | R46: 74
H47: 施仁貴 | I47: 83 | K47: 71 | L47: 80 | N47: 3 | Q47: 75 | R47: 84
H48: 劉韻甄 | I48: 83 | K48: 81 | L48: 90 | N48: 3 | Q48: 85 | R48: 94
H49: 黃國鳴 | I49: 54 | K49: 91 | L49: 100 | N49: 2 | Q49: 95 | R49: 100
H50: 沈威利 | I50: 58
H51: 歐文婷 | I51: 92
H52: 黃楠瑞 | I52: 69
H53: 劉怡妙 | I53: 85
H54: 簡妤真 | I54: 39
H55: 黃喬郁 | I55: 43
H56: 李姿嫻 | I56: 40
H57: 周淑鈴 | I57: 97
H58: 林若姿 | I58: 78
H59: 劉靜樺 | I59: 78
H60: 廖敏雯 | I60: 45
H61: 林淑敏 | I61: 30
A64: 統計函數範例 #5 - 條件式合計及平均
H65: 科目 | I65: 國文 | J65: 英文 | K65: 微積分 | L65: 工廠實習 | M65: 投資學
A66: 儲格I66:M69 業已儲存了成績資料庫。本範例使用了SUMIF函數，來查算符合要求條件的某科目的成績總和及計算平均。 查閱本範例符合要求微積分成績">80"的投資學成績總和及平均成績，可以選定儲格K73。符合微積分成績">80"的投資學成績總和的計算，公式是SUMIF(K66:K69,I73,M66:M69)，人數公式是COUNTIF(K66:K69,I73)。 | H66: 謝治勳 | I66: 73 | J66: 75 | K66: 86 | L66: 93 | M66: 97 | Q66: 練習
H67: 高雅琴 | I67: 76 | J67: 86 | K67: 76 | L67: 75 | M67: 90 | Q67: 基準科目 | S67: 計算科目
H68: 陳弘祐 | I68: 92 | J68: 94 | K68: 92 | L68: 86 | M68: 85 | Q68: 符合要求 | S68: 平均成績
H69: 彭琪祿 | I69: 89 | J69: 91 | K69: 87 | L69: 99 | M69: 99
H72: 基準科目 | I72: 微積分 | J72: 計算科目 | K72: 投資學
H73: 符合要求 | I73: >80 | J73: 平均成績 | K73: =SUMIF(K66:K69,I73,M66:M69)/COUNTIF(K66:K69,I73) -> 93.66666667

Sheet 資料庫檢索
A1: =Welcome!$C$10&"-"&Welcome!$D$10&"-"&Welcome!$E$10 -> 商智院-教授-陳文魁 | K1: Welcome!B10
A3: 資料庫檢索功能讓您得以檢索資料庫的關連數據。下列範例呈現若干資料庫檢索的應用 。
A7: 檢索公式範例 #1 - 名次及名稱
O8: 練習
A9: 儲存格 I10:I14 業已輸入了數值資料。本範例使用LARGE函數來查定前三名成績，使用LOOKUP函數來查定成績前三名的姓名。 查閱本範例第二名的成績，可以選定儲存格L11，採用的公式是 LARGE($I$10:$I$14,2)。查閱本範例成績第二名的姓名，可以選定儲存格K11，公式是LOOKUP(L11,$I$10:$I$14,$H$10:$H$14)。 | H9: 姓名 | I9: 成績 | K9: 名次 | L9: 成績 | M9: 姓名 | O9: 名次 | P9: 成績 | Q9: 姓名
H10: 謝治勳 | I10: 73 | K10: 1 | O10: 1
H11: 高雅琴 | I11: 85 | K11: 2 | L11: =LARGE($I$10:$I$14,K11) -> 85 | M11: =LOOKUP(L11,$I$10:$I$14,$H$10:$H$14) -> 陳弘祐 | O11: 2
H12: 陳弘祐 | I12: 79 | K12: 3 | O12: 3
H13: 彭琪祿 | I13: 93
H14: 鄭雅菁 | I14: 72
A20: 檢索公式範例 #2 - 定位及名稱
O21: 練習
A22: 儲存格 I23:M27 業已儲放某班成績，本範例使用工作表MATCH函數進行定位，並且使用OFFSET函數查定姓名。MATCH與OFFSET兩函數的合用，就不需要為資料庫的事先排序。 要查閱本範例的定位功能可以選定 L24，而查定名稱功能可以選定 M24。 | H22: 姓名 | I22: 成績 | K22: 名次 | L22: 成績位置 | M22: 姓名 | O22: 名次 | P22: 成績位置 | Q22: 姓名
H23: 謝治勳 | I23: 73 | K23: 1 | O23: 1
H24: 高雅琴 | I24: 85 | K24: 2 | L24: =MATCH(LARGE($I$23:$I$27,K24),$I$23:$I$27,0) -> 2 | M24: =OFFSET(H22,L24,0) -> 高雅琴 | O24: 2
H25: 陳弘祐 | I25: 79 | K25: 3 | O25: 3
H26: 彭琪祿 | I26: 93
H27: 鄭雅菁 | I27: 72
A31: 檢索公式範例 #3 - 複合式檢索
O32: 科目成績單 | S32: 練習
A33: 於儲存格 H34:M37 儲放某班成績，本範例複合使用兩函數MATCH及OFFSET，檢索符合雙條件的姓名。OFFSET函數可以選取陣列範圍。 要查閱本範例的符合雙條件的檢索姓名功能，可以選定 Q36 儲存格，並從資料編輯列查視公式。 | H33: 課程 | I33: 國文 | J33: 英文 | K33: 微積分 | L33: 工廠實習 | M33: 投資學 | O33: 基位,列數,欄數,厚,寬 | S33: 名次 | T33: 成績位置 | U33: 姓名
H34: 謝治勳 | I34: 73 | J34: 75 | K34: 86 | L34: 93 | M34: 79 | O34: 姓名檢索 | S34: 1 | T34: 工廠實習
H35: 高雅琴 | I35: 91 | J35: 86 | K35: 76 | L35: 75 | M35: 90 | O35: 科目 | P35: 英文 | Q35: 姓名 | S35: 2 | T35: 2
H36: 陳弘祐 | I36: 92 | J36: 94 | K36: 92 | L36: 86 | M36: 85 | O36: 名次 | P36: 2 | Q36: =OFFSET(基位,MATCH(科目成績,科目成績單,0),) -> 彭琪祿 | S36: 3
H37: 彭琪祿 | I37: 89 | J37: 91 | K37: 84 | L37: 84 | M37: 89
P39: =OFFSET(基位,MATCH(科目成績,科目成績單,0),) -> 彭琪祿

Sheet 資料庫篩選
A1: =Welcome!$C$10&"-"&Welcome!$D$10&"-"&Welcome!$E$10 -> 商智院-教授-陳文魁 | J1: Welcome!B10
A3: 資料庫篩選功能讓您得以檢索資料庫的關連數據。下列範例呈現若干資料庫篩選的應用 。
A7: 資料庫篩選範例 #1 - 自動篩選
A9: 本範例展現自動篩選的功能，可便利資料庫的查詢。 於儲存格 H11:M14 儲放某班成績，要篩選本範例的符合雙條件的查定姓名功能，可先按特定科目分數排序後，逕從資料庫查視姓名。
H10: 姓名 | I10: 國文 | J10: 英文 | K10: 微積分 | L10: 工廠實習 | M10: 投資學
H11: 謝治勳 | I11: 73 | J11: 75 | K11: 86 | L11: 93 | M11: 79 | O11: 姓名查詢 | S11: 練習
H12: 高雅琴 | I12: 76 | J12: 86 | K12: 76 | L12: 75 | M12: 90 | O12: 科目 | P12: 英文 | Q12: 姓名 | S12: 科目 | T12: 英文 | U12: 姓名
H13: 陳弘祐 | I13: 92 | J13: 94 | K13: 92 | L13: 86 | M13: 85 | O13: 名次 | P13: 3 | Q13: =OFFSET(H10,MATCH(LARGE(OFFSET(H10,1,MATCH(P12,I10:M10,0),4,1),P13),OFFSET(H10,1,MATCH(P12,I10:M10,0),4,1),0),0) -> 高雅琴 | S13: 名次
H14: 彭琪祿 | I14: 89 | J14: 91 | K14: 84 | L14: 84 | M14: 89
A15: 資料庫篩選範例 #2 - 單一準則
A17: 儲存格H18:I22 業已輸入了某科成績資料。本範例使用篩選來查定"80以上"成績的姓名。 查閱本範例80分以上成績的姓名，可以選定儲存格L17:L18，進行資料的進階篩選，設定篩選準則">80"，要求將結果輸出至儲存格K21:L21。 | H17: 姓名 | I17: 成績 | K17: 篩選準則 | L17: 成績 | O17: 練習
H18: 謝治勳 | I18: 73 | K18: 1 | L18: >80 | O18: 篩選準則 | P18: 成績
H19: 高雅琴 | I19: 85 | O19: 1
H20: 陳弘祐 | I20: 79 | K20: 篩選結果
H21: 彭琪祿 | I21: 93 | K21: 姓名 | L21: 成績 | O21: 篩選結果
H22: 鄭雅菁 | I22: 72 | K22: 高雅琴 | L22: 85 | O22: 姓名 | P22: 成績
K23: 彭琪祿 | L23: 93
A26: 資料庫篩選範例 #3 - 聯合準則
A28: 儲存格H18:I22 業已輸入了某科成績資料。本範例使用篩選來查定"81~90"成績的姓名。 查閱本範例81~90分成績的姓名，可以選定儲存格H31:I31，設定篩選準則">80"及"<=90"，進行資料的進階篩選，要求將結果輸出至儲存格K32:L32。 | O28: 練習
H29: 篩選準則 | K29: 篩選結果 | O29: 篩選準則 | Q29: 篩選結果
H30: 成績 | I30: 成績 | K30: 姓名 | L30: 成績 | O30: 成績 | P30: 成績 | Q30: 姓名 | R30: 成績
H31: >80 | I31: <=90 | K31: 高雅琴 | L31: 85
A36: 資料庫篩選範例 #4 - 複合準則 | O36: 練習
O37: 篩選準則 | P37: 成績 | Q37: 篩選結果
A38: 儲存格H18:I22 業已輸入了某科成績資料。本範例使用篩選來查定"低於60"及"高於90"成績的姓名。 查閱本範例兩極成績的姓名，可以選定儲存格I39:I40，設定篩選準則">80"及"<=90"，進行資料的進階篩選，要求將結果輸出至儲存格K39:L39。 | H38: 準則 | I38: 成績 | K38: 篩選結果 | O38: 1 | Q38: 姓名 | R38: 成績
H39: 1 | I39: >90 | K39: 姓名 | L39: 成績 | O39: 2
H40: 2 | I40: <70 | K40: 彭琪祿 | L40: 93
A45: 資料庫篩選範例 #5 - 多重準則
H46: 篩選準則 | N46: 練習
A47: 於儲存格 H9:M13 業已儲放某班多科成績，要篩選本範例的符合雙條件的查定姓名功能，可以進行資料的進階篩選。 可以選定儲存格I48:J48，設定篩選準則"投資學>80"及"微積分>85"，進行資料的進階篩選，要求將結果輸出至儲存格H51:J51。 | H47: 投資學 | I47: 微積分 | N47: 篩選準則 | Q47: 篩選結果
H48: >70 | I48: >85 | N48: 科目 | Q48: 姓名 | R48: 國文 | S48: 英文
N49: 準則
H50: 篩選結果
H51: 姓名 | I51: 投資學 | J51: 微積分
H52: 謝治勳 | I52: 79 | J52: 86
H53: 陳弘祐 | I53: 85 | J53: 92

Sheet 樞紐分析表
A1: =Welcome!$C$10&"-"&Welcome!$D$10&"-"&Welcome!$E$10 -> 商智院-教授-陳文魁 | M1: Welcome!B10
A3: 樞紐分析表報表是一個能夠快速合併和比較大量資料的互動式表格。您可以旋轉它的列和欄來檢視不同來源資料的大綱，並且您可以顯示感興趣部份的明細資料。下列範例呈現若干樞紐分析表的應用 。
A7: 樞紐分析表範例 #1 - 組織資料
A9: 在樞紐分析表報表中，來源資料的每一欄或欄位會成為一個摘要多列資訊的樞紐分析表欄位。在上述範例中，Sport 欄變成為 Sport 欄位，且每一個 Golf 的記錄會被摘要於單一的 Golf 項目。
A15: 樞紐分析表 #2 - 建立分析表
A17: 若要建立樞紐分析表報表，請執行樞紐分析表和樞紐分析圖精靈。在精靈中，您可以從工作表清單或外部資料庫中選取想要的來源資料。隨後，精靈會產生一個報表的工作表區域和可用欄位的清單。當您從清單視窗拖曳欄位至大綱的區域時，Microsoft Excel 會自動地對該報表進行摘要和計算。
A26: 樞紐分析表範例 #3 - 變更版面配置
A28: 在建立樞紐分析表報表後，您可以自訂報表以便將焦點放在您想要的資訊上：變更版面配置、變更格式或顯示更多明細的資料。
A33: 樞紐分析表範例 #4 - 實例演練
B36: 電機課表 | D36: 樞紐分析表報形式 | J36: 樞紐分析表報結果 | R36: 練習
B38: 欄名 | D38: 選修別 | E38: 選修 | J38: 選修別 | K38: 必 | R38: 系級名稱
B39: 學年
B40: 學期 | D40: 學分數 | E40: 開課系級 | J40: 加總 的學分數 | K40: 開課系級 | R40: 學分數 | S40: 上課教師
B41: 開課系級 | D41: 上課教師 | J41: 上課教師 | K41: A01011 | L41: A01012 | M41: A01021 | N41: 總計 | R41: 課程名稱
B42: 系級名稱 | J42: 王 琦 | M42: 2 | N42: 2
B43: 選修別 | J43: 王武治 | L43: 2 | N43: 2
B44: 課程代號 | J44: 王曙民 | K44: 3 | L44: 3 | N44: 6
B45: 課程名稱 | J45: 余國瑞 | L45: 4 | N45: 4
B46: 學分數 | J46: 吳永駿 | M46: 3 | N46: 3
B47: 上課時數 | J47: 吳昌恂 | M47: 1 | N47: 1
B48: 上課教師 | J48: 宋一夫 | K48: 0 | N48: 0
B49: 教師職號 | J49: 沈季燕 | M49: 3 | N49: 3
B50: 上課教室 | J50: 林仲修 | K50: 2 | N50: 2
J51: 范燕姬 | L51: 3 | N51: 3
A52: t | B52: 樞紐分析表精靈 | J52: 孫永莒 | K52: 4 | N52: 4
J53: 殷李彭 | M53: 1 | N53: 1
J54: 郭家旭 | K54: 3 | N54: 3
J55: 陳基發 | M55: 4 | N55: 4
J56: 陳慶瀚 | K56: 3 | L56: 6 | N56: 9
J57: 黃永生 | L57: 4 | N57: 4
J58: 黃瑞初 | K58: 4 | L58: 4 | N58: 8
J59: 黃蓮池 | M59: 3 | N59: 3
J60: 楊俊哲 | M60: 1 | N60: 1
J61: 蔡媚琦 | M61: 1 | N61: 1
J62: 蔡舜寧 | K62: 3 | N62: 3
J63: 鄭夏英 | L63: 0 | N63: 0
J64: 鄭瓊月 | L64: 3 | N64: 3
J65: 戴鄂 | K65: 3 | N65: 3
J66: 謝世傑 | M66: 6 | N66: 6
J67: 羅如燕 | M67: 3 | N67: 3
J68: (空白) | K68: 0 | L68: 0 | M68: 3 | N68: 3
J69: 總計 | K69: 25 | L69: 29 | M69: 31 | N69: 85
A73: u | B73: 樞紐分析來源資料
A87: v | B87: 樞紐分析摘要來源
A103: w | B103: 樞紐分析版面配置

Sheet 電機課表
A1: 學年 | B1: 學期 | C1: 開課系級 | D1: 系級名稱 | E1: 選修別 | F1: 課程代號 | G1: 課程名稱 | H1: 學分數 | I1: 上課時數 | J1: 上課教師 | K1: 教師職號 | L1: 上課教室 | N1: Welcome!B10
A2: 92 | B2: 1 | C2: A01011 | D2: 電機一Ａ | E2: 必 | F2: A0117010 | G2: 中國文學 | H2: 3 | I2: 2 | J2: 蔡舜寧 | K2: 19266 | L2: 50409
A3: 92 | B3: 1 | C3: A01011 | D3: 電機一Ａ | E3: 必 | F3: A0117010 | G3: 中國文學 | H3: 0 | I3: 1 | J3: 蔡舜寧 | K3: 19266 | L3: 50409
A4: 92 | B4: 1 | C4: A01011 | D4: 電機一Ａ | E4: 必 | F4: A0117410 | G4: 中華民國憲法與政府 | H4: 2 | I4: 2 | J4: 林仲修 | K4: 18228 | L4: 50809
A5: 92 | B5: 1 | C5: A01011 | D5: 電機一Ａ | E5: 必 | F5: A0109910 | G5: 服務教育(一) | H5: 0 | I5: 0 | K5: 99999
A6: 92 | B6: 1 | C6: A01011 | D6: 電機一Ａ | E6: 必 | F6: A0112710 | G6: 計算機概論(一) | H6: 3 | I6: 3 | J6: 陳慶瀚 | K6: 18418 | L6: 3418
A7: 92 | B7: 1 | C7: A01011 | D7: 電機一Ａ | E7: 必 | F7: A0111710 | G7: 普通物理(一) | H7: 3 | I7: 3 | J7: 孫永莒 | K7: 18707 | L7: 50809
A8: 92 | B8: 1 | C8: A01011 | D8: 電機一Ａ | E8: 必 | F8: A0111910 | G8: 普通物理實驗(一) | H8: 1 | I8: 3 | J8: 孫永莒 | K8: 18707 | L8: 2412
A9: 92 | B9: 1 | C9: A01011 | D9: 電機一Ａ | E9: 必 | F9: A0111310 | G9: 微積分(一) | H9: 4 | I9: 2 | J9: 黃瑞初 | K9: 18208 | L9: 50305
A10: 92 | B10: 1 | C10: A01011 | D10: 電機一Ａ | E10: 必 | F10: A0111310 | G10: 微積分(一) | H10: 0 | I10: 2 | J10: 黃瑞初 | K10: 18208 | L10: 50305
A11: 92 | B11: 1 | C11: A01011 | D11: 電機一Ａ | E11: 選 | F11: A0152110 | G11: 電機概論 | H11: 3 | I11: 3 | J11: 莊景文 | K11: 18606 | L11: 50705
A12: 92 | B12: 1 | C12: A01011 | D12: 電機一Ａ | E12: 選 | F12: A0115010 | G12: 電機電子導論 | H12: 3 | I12: 3 | J12: 艾祖華 | K12: 19154 | L12: 3617
A13: 92 | B13: 1 | C13: A01011 | D13: 電機一Ａ | E13: 必 | F13: A0117210 | G13: 實用英文(一) | H13: 3 | I13: 3 | J13: 戴鄂 | K13: 68738 | L13: 50809
A14: 92 | B14: 1 | C14: A01011 | D14: 電機一Ａ | E14: 必 | F14: A0125500 | G14: 數位邏輯 | H14: 3 | I14: 3 | J14: 郭家旭 | K14: 19146 | L14: 50306
A15: 92 | B15: 1 | C15: A01011 | D15: 電機一Ａ | E15: 必 | F15: A0125510 | G15: 數位邏輯 | H15: 3 | I15: 3 | J15: 王曙民 | K15: 18214 | L15: 50406
A16: 92 | B16: 1 | C16: A01011 | D16: 電機一Ａ | E16: 必 | F16: A0110110 | G16: 體育(一) | H16: 0 | I16: 2 | J16: 宋一夫 | K16: 18454
A17: 92 | B17: 1 | C17: A01012 | D17: 電機一Ｂ | E17: 必 | F17: A0117020 | G17: 中國文學 | H17: 3 | I17: 2 | J17: 鄭瓊月 | K17: 18010 | L17: 50810
A18: 92 | B18: 1 | C18: A01012 | D18: 電機一Ｂ | E18: 必 | F18: A0117020 | G18: 中國文學 | H18: 0 | I18: 1 | J18: 鄭瓊月 | K18: 18010 | L18: 50810
A19: 92 | B19: 1 | C19: A01012 | D19: 電機一Ｂ | E19: 必 | F19: A0117420 | G19: 中華民國憲法與政府 | H19: 2 | I19: 2 | J19: 王武治 | K19: 691F3 | L19: 50809
A20: 92 | B20: 1 | C20: A01012 | D20: 電機一Ｂ | E20: 選 | F20: A0135300 | G20: 材料科學導論 | H20: 3 | I20: 3 | J20: 孫迺翔 | K20: 18620 | L20: 50306
A21: 92 | B21: 1 | C21: A01012 | D21: 電機一Ｂ | E21: 必 | F21: A0109920 | G21: 服務教育(一) | H21: 0 | I21: 0 | K21: 99999
A22: 92 | B22: 1 | C22: A01012 | D22: 電機一Ｂ | E22: 必 | F22: A0112700 | G22: 計算機概論(一) | H22: 3 | I22: 3 | J22: 陳慶瀚 | K22: 18418 | L22: 1410
A23: 92 | B23: 1 | C23: A01012 | D23: 電機一Ｂ | E23: 必 | F23: A0112720 | G23: 計算機概論(一) | H23: 3 | I23: 3 | J23: 陳慶瀚 | K23: 18418 | L23: 1410
A24: 92 | B24: 1 | C24: A01012 | D24: 電機一Ｂ | E24: 必 | F24: A0111720 | G24: 普通物理(一) | H24: 3 | I24: 3 | J24: 余國瑞 | K24: 18621 | L24: 50401
A25: 92 | B25: 1 | C25: A01012 | D25: 電機一Ｂ | E25: 必 | F25: A0111920 | G25: 普通物理實驗(一) | H25: 1 | I25: 3 | J25: 余國瑞 | K25: 18621 | L25: 2312
A26: 92 | B26: 1 | C26: A01012 | D26: 電機一Ｂ | E26: 必 | F26: A0111300 | G26: 微積分(一) | H26: 4 | I26: 2 | J26: 黃永生 | K26: 19011 | L26: 3719
A27: 92 | B27: 1 | C27: A01012 | D27: 電機一Ｂ | E27: 必 | F27: A0111300 | G27: 微積分(一) | H27: 0 | I27: 2 | J27: 黃永生 | K27: 19011 | L27: 3719
A28: 92 | B28: 1 | C28: A01012 | D28: 電機一Ｂ | E28: 必 | F28: A0111320 | G28: 微積分(一) | H28: 4 | I28: 2 | J28: 黃瑞初 | K28: 18208 | L28: 50411
A29: 92 | B29: 1 | C29: A01012 | D29: 電機一Ｂ | E29: 必 | F29: A0111320 | G29: 微積分(一) | H29: 0 | I29: 2 | J29: 黃瑞初 | K29: 18208 | L29: 50411
A30: 92 | B30: 1 | C30: A01012 | D30: 電機一Ｂ | E30: 必 | F30: A0117220 | G30: 實用英文(一) | H30: 3 | I30: 3 | J30: 范燕姬 | K30: 18120 | L30: 50810
A31: 92 | B31: 1 | C31: A01012 | D31: 電機一Ｂ | E31: 必 | F31: A0125520 | G31: 數位邏輯 | H31: 3 | I31: 3 | J31: 王曙民 | K31: 18214 | L31: 50809
A32: 92 | B32: 1 | C32: A01012 | D32: 電機一Ｂ | E32: 必 | F32: A0110120 | G32: 體育(一) | H32: 0 | I32: 2 | J32: 鄭夏英 | K32: 18355
A33: 92 | B33: 1 | C33: A01021 | D33: 電機二Ａ | E33: 必 | F33: A0121300 | G33: 工程數學(一) | H33: 3 | I33: 3 | J33: 沈季燕 | K33: 18012 | L33: 50803
A34: 92 | B34: 1 | C34: A01021 | D34: 電機二Ａ | E34: 必 | F34: A0121310 | G34: 工程數學(一) | H34: 3 | I34: 3 | J34: 羅如燕 | K34: 18001 | L34: 50803
A35: 92 | B35: 1 | C35: A01021 | D35: 電機二Ａ | E35: 必 | F35: A0121400 | G35: 工程數學(二) | H35: 3 | I35: 0 | K35: 99999
A36: 92 | B36: 1 | C36: A01021 | D36: 電機二Ａ | E36: 必 | F36: A0128810 | G36: 台灣歷史與文化 | H36: 2 | I36: 2 | J36: 王 琦 | K36: 18217 | L36: 50809
A37: 92 | B37: 1 | C37: A01021 | D37: 電機二Ａ | E37: 必 | F37: A0128600 | G37: 英語聽講實習(一) | H37: 1 | I37: 2 | J37: 吳昌恂 | K37: 691D1 | L37: 50203
A38: 92 | B38: 1 | C38: A01021 | D38: 電機二Ａ | E38: 必 | F38: A0128610 | G38: 英語聽講實習(一) | H38: 1 | I38: 2 | J38: 蔡媚琦 | K38: 691F6 | L38: 50111
A39: 92 | B39: 1 | C39: A01021 | D39: 電機二Ａ | E39: 選 | F39: A0138100 | G39: 訊號及系統 | H39: 3 | I39: 3 | J39: 林堉仁 | K39: 18826 | L39: 50803
A40: 92 | B40: 1 | C40: A01021 | D40: 電機二Ａ | E40: 選 | F40: A0138110 | G40: 訊號及系統 | H40: 3 | I40: 3 | J40: 楊俊哲 | K40: 19169 | L40: 50312
A41: 92 | B41: 1 | C41: A01021 | D41: 電機二Ａ | E41: 必 | F41: A0134710 | G41: 微處理機原理 | H41: 3 | I41: 3 | J41: 陳基發 | K41: 18103 | L41: 50809
A42: 92 | B42: 1 | C42: A01021 | D42: 電機二Ａ | E42: 必 | F42: A0122100 | G42: 電子學(一) | H42: 3 | I42: 3 | J42: 黃蓮池 | K42: 18524 | L42: 50811
A43: 92 | B43: 1 | C43: A01021 | D43: 電機二Ａ | E43: 必 | F43: A0122110 | G43: 電子學(一) | H43: 3 | I43: 3 | J43: 吳永駿 | K43: 19055 | L43: 50412
A44: 92 | B44: 1 | C44: A01021 | D44: 電機二Ａ | E44: 必 | F44: A0121510 | G44: 電工實驗(一) | H44: 1 | I44: 3 | J44: 殷李彭 | K44: 18250 | L44: 3111
A45: 92 | B45: 1 | C45: A01021 | D45: 電機二Ａ | E45: 必 | F45: A0131600 | G45: 電工實驗(五) | H45: 1 | I45: 3 | J45: 陳基發 | K45: 18103 | L45: 3113
A46: 92 | B46: 1 | C46: A01021 | D46: 電機二Ａ | E46: 必 | F46: A0131610 | G46: 電工實驗(五) | H46: 1 | I46: 3 | J46: 楊俊哲 | K46: 19169 | L46: 3113
A47: 92 | B47: 1 | C47: A01021 | D47: 電機二Ａ | E47: 必 | F47: A0121900 | G47: 電路學(一) | H47: 3 | I47: 3 | J47: 謝世傑 | K47: 18527 | L47: 50808
A48: 92 | B48: 1 | C48: A01021 | D48: 電機二Ａ | E48: 必 | F48: A0121910 | G48: 電路學(一) | H48: 3 | I48: 3 | J48: 謝世傑 | K48: 18527 | L48: 50808

Sheet 文字式函數
A1: =Welcome!$C$10&"-"&Welcome!$D$10&"-"&Welcome!$E$10 -> 商智院-教授-陳文魁 | J1: Welcome!B10
A3: Excel提供許多文字處理的函數，例如英文字的大小寫轉換、取代特定文字…。下列範例呈現若干文字函數的應用 。
A6: 大小寫的轉換 | C6: LOWER | D6: UPPER
B8: 原始文字 | D8: 小寫 | E8: 大寫 | H8: 練習
B9: GOOD | D9: =LOWER(B9) -> good | E9: =UPPER(D9) -> GOOD
A11: 兩端文字的尋找 | C11: LEFT | D11: RIGHT
B13: 銷售員 | D13: 姓 | E13: 名 | H13: 練習
B14: 王大明 | D14: =LEFT(B14,1) -> 王 | E14: =RIGHT(B14,2) -> 大明
A16: 部分文字的轉換 | C16: REPLACE | D16: SUBSTITUTE
B18: 原始文字 | E18: 轉換結果 | H18: 練習
B19: 中華民國憲法與政府 | E19: =REPLACE(B19,5,5,"*****") -> 中華民國***** | F19: =SUBSTITUTE(B19,"憲法與政府","*****") -> 中華民國*****
A21: 字串格式的轉換 | C21: TEXT
B23: 銷售員 | C23: 銷售額 | D23: 轉換結果 | H23: 練習
B24: 王大明 | C24: 2800 | D24: =B24&" 賣出 "&TEXT(C24, "$0.00")&" 價值商品" -> 王大明 賣出 $2800.00 價值商品
A26: 文字長度的轉換 | C26: LEN
B28: 原始文字 | E28: 轉換結果 | H28: 練習
B29: 中華民國憲法與政府 | E29: =LEN(B29) -> 9
A31: 部分文字的定位 | C31: SEARCH | D31: FIND
B33: 原始文字 | E33: 轉換結果 | H33: 練習
B34: 中華民國憲法與政府 | E34: =SEARCH("憲法",B34,1) -> 5 | F34: =FIND("憲法",B34,1) -> 5
A36: 部分文字的取出 | C36: MID
B38: 原始文字 | E38: 轉換結果 | H38: 練習
B39: 陶瓷絕緣體 #124-TD45-87 | E39: =MID(B39,1,FIND(" #",B39,1)-1) -> 陶瓷絕緣體
A42: 文字數碼的轉換 | C42: Code | D42: CHAR | E42: ASC | F42: BIG5 | G42: T | H42: VALUE
B44: 原始文字 | E44: 轉換結果 | H44: 練習
B45: 英文 | C45: A | E45: =CODE(C45) -> 65 | F45: =CHAR(E45) -> A
B46: 符號 | C46: { | E46: 123 | F46: {
B47: 數字 | C47: 8 | E47: 56 | F47: 8
B48: 常見字 | C48: 陳 | E48: 0
B49: 英文字 | C49: { | E49: 123 | F49: {
B50: 罕見字 | C50: 媖 | E50: 63 | F50: ?
B51: 半/全形 | C51: 文２５８ | E51: =ASC(C51) -> 文２５８ | F51: =DBCS(E51) -> 文２５８
B52: 文字/數字 | C52: 458 | E52: =T(B52) -> 文字/數字 | F52: =T(C52) -> 
B53: 數值 | C53: =TODAY() -> 2020-11-25 | E53: =VALUE(C53) -> 44160 | F53: =T(C53) -> 
B54: 數值 | C54: =NOW() -> 2020-11-25T07:28:29.160 | E54: =VALUE(C54) -> 44160.31145 | F54: =T(C54) -> 
A57: 文字函數的自訂
B72: 自訂函數的使用 | E72: 公式
B73: 中國文學 | D73: =實驗(B73) ->  | E73: =IF(ISERROR(SEARCH("實驗",B73,1)),"","實驗") -> 
B74: 普通物理實驗(一) | D74: =實驗(B74) ->  | E74: =IF(ISERROR(SEARCH("實驗",B74,1)),"","實驗") -> 實驗
B75: 電工實驗(一) | E75: 實驗
B76: 電工實驗(五) | E76: 實驗
B77: 電工實驗(四) | E77: 實驗
B78: 電磁學(二)
B79: 電工實驗(四) | E79: 實驗
B80: 普通物理(一)
B81: 普通物理實驗(一) | E81: 實驗
B82: 電子實驗(三) | E82: 實驗
B83: 電子學(三)
B84: 類比電子電路實驗 | E84: 實驗
B85: 專題實驗(二) | E85: 實驗

Sheet 返回Welcome
H11: Welcome!B10
